[Event "German Bundesliga 2024-25"]
[Site "Germany"]
[Date "2024.11.30"]
[Round "3.3"]
[White "Huschenbeth, Niclas"]
[Black "Wei, Yi"]
[Result "1/2-1/2"]
[Annotator "TA"]
[ECO "B95"]
[WhiteElo "2594"]
[BlackElo "2753"]
[PlyCount "104"]
[EventDate "2024.09.27"]
[EventType "team-tourn"]
[EventCountry "GER"]
[SourceTitle "playchess.com"]
[Source "ChessBase"]
[SourceQuality "1"]
[WhiteTeam "Hamburg"]
[BlackTeam "Duesseldorf"]
[TimeControl "40/5400+30:1800+30"]

{[%evp 16,104,20,16,18,16,26,15,16,18,42,20,35,40,75,47,106,95,89,99,122,101,163,52,55,52,47,46,49,37,60,34,58,67,61,45,46,55,67,66,64,66,72,54,87,86,87,87,87,87,87,87,87,75,87,87,87,87,87,79,87,87,87,87,87,87,87,87,87,72,72,72,72,72,72,0,87,0,58,58,59,59,59,8,25,15,183,0,0,0,0]} 1. e4 {[%emt 2:53:38]} c5 {[%emt 0:00:12]} 2. Nf3 {[%emt 0:00:05]} d6 {[%emt 0:00:09]} 3. d4 {[%emt 0:00:05]} cxd4 {[%emt 0:00:08]} 4. Nxd4 {[%emt 0:00:05]} Nf6 {[%emt 0:00:06]} 5. Nc3 {[%emt 0:00:06]} a6 {[%emt 0:00:07]} 6. Bg5 {[%emt 0:00:07]} e6 {[%emt 0:00:41]} 7. Qf3 {[%emt 0:00:09]} h6 {[%emt 0:07:05] B95: Sicilian Najdorf: 6 Bg5 e6, unusual White 7th moves.} 8. Bd2 {[%emt 0:00:13] Nowadays more popular than 8.Be3.} Qb6 {[%emt 0:06:31]} 9. Nb3 {[%emt 0:00:06]} Qc7 {[%emt 0:00:42]} 10. a4 {[%emt 0:00:05]} b6 {[%emt 0:01:54]} 11. Qg3 {[%emt 0:00:11]} Bb7 $146 {[%emt 0:01:11]} ({Predecessor:} 11... Nc6 12. Bd3 g6 13. f4 Bg7 14. O-O O-O 15. Be3 Bb7 16. Qf2 Nd7 17. Rad1 Nb4 {½-½ Fenes,L (2532)-Lanc,A (2422) SVK-ch23 fin email 2017}) 12. f3 {[%emt 0:00:09]} Nc6 {[%emt 0:04:13]} 13. O-O-O {[%emt 0:00:11]} Nb4 {[%emt 0:10:27]} 14. Kb1 {[%emt 0:02:08]} Rc8 {[%emt 0:11:38]} 15. Be3 {[%emt 0:15:44]} Nd7 {[%emt 0:04:58]} (15... h5 $1 $14) 16. Rd2 $16 {[%emt 0:14:46]} h5 {[%emt 0:09:49]} 17. h4 {[%emt 0:01:36]} g6 {[%emt 0:03:26]} 18. Be2 {[%emt 0:03:05]} Be7 {[%emt 0:01:23]} (18... d5 $16 19. Qxc7 Rxc7) 19. Bg5 {[%emt 0:10:23]} ({White should try} 19. Bf4 $18) 19... d5 $14 {[%emt 0:02:45]} 20. Qxc7 {[%emt 0:00:44]} Rxc7 {[%emt 0:00:03]} 21. exd5 {[%emt 0:01:39]} Nxd5 {[%emt 0:01:40]} 22. Nxd5 {[%emt 0:00:27]} exd5 {[%emt 0:00:09]} 23. a5 b5 24. Re1 Bxg5 25. hxg5 Kd8 26. Bd3 Re8 27. Rxe8+ Kxe8 28. Re2+ Kd8 29. Nd4 Nf8 30. c3 Re7 31. Kc2 Rxe2+ 32. Bxe2 ({Much worse is} 32. Nxe2 Ne6 $15) 32... Ke7 33. Kd3 Bc8 34. g3 Kd6 35. f4 Bh3 36. Bf3 Nd7 37. b4 Nf8 38. Ke3 Ne6 39. Be2 Ng7 40. Bd3 Bg4 41. Bc2 Bh3 42. Nf3 Bf5 43. Bb3 Be6 44. Nd4 Bg4 45. Bc2 Bh3 $1 46. Bd3 Bg4 47. Bf1 Bf5 48. Nf3 Ne6 49. Bd3 (49. Kf2 $1 $14) 49... Bxd3 $11 50. Kxd3 Ng7 $2 (50... Nd8 $11) 51. Nd4 $2 ({White has to play} 51. Ne5 $18) 51... Kd7 $11 52. Ke3 Nf5+ 1/2-1/2

[Event "German Bundesliga 2024-25"]
[Site "Germany"]
[Date "2024.11.30"]
[Round "3.3"]
[White "Efimenko, Zahar"]
[Black "Zilka, Stepan"]
[Result "1-0"]
[Annotator "TA"]
[ECO "C77"]
[WhiteElo "2567"]
[BlackElo "2539"]
[PlyCount "57"]
[EventDate "2024.09.27"]
[EventType "team-tourn"]
[EventCountry "GER"]
[SourceTitle "playchess.com"]
[Source "ChessBase"]
[SourceQuality "1"]
[WhiteTeam "Werder Bremen"]
[BlackTeam "Heimbach-Weis-Neuwied"]
[TimeControl "40/5400+30:1800+30"]

{[%evp 12,57,10,10,29,39,58,65,73,69,70,68,87,72,62,60,88,84,86,52,48,48,70,77,297,295,251,0,145,117,183,183,153,20,325,323,393,389,440,435,434,416,406,377,387,352,472,484]} 1. e4 {[%emt 0:00:37]} e5 {[%emt 0:00:05]} 2. Nf3 {[%emt 0:00:10]} Nc6 {[%emt 0:00:05]} 3. Bb5 {[%emt 0:00:08][%cal Bf1b5,Bb5a4,Ba4b3][%mdl 32]} a6 {[%emt 0:02:17]} 4. Ba4 {[%emt 0:00:08]} Nf6 {[%emt 0:00:30]} 5. Nc3 {[%emt 0:00:53]} b5 {[%emt 0:07:20]} 6. Bb3 {[%emt 0:00:17]} Bc5 {[%emt 0:05:39]} 7. O-O {[%emt 0:02:36]} d6 {[%emt 0:02:41]} 8. Nd5 {[%emt 0:02:36]} Na5 {[%emt 0:06:56]} 9. d4 {[%emt 0:07:46]} Nxb3 {[%emt 0:03:18] White is slightly better.} 10. axb3 {[%emt 0:01:17]} Nxd5 $1 {[%emt 0:00:39]} 11. exd5 {[%emt 0:02:46]} exd4 {[%emt 0:08:00]} 12. Re1+ {[%emt 0:05:20]} Kf8 {[%emt 0:00:08]} 13. Nxd4 {[%emt 0:00:41]} Qf6 {[%emt 0:07:06]} 14. Be3 {[%emt 0:02:57] aiming for Nxb5. Active counter play!} Bd7 {[%emt 0:02:46]} 15. Nf3 {[%emt 0:20:11]} Bxe3 {[%emt 0:14:30]} 16. Rxe3 {[%emt 0:01:17]} Qxb2 {[%emt 0:00:02]} 17. Nd4 {[%emt 0:05:28] Black must now prevent Rb1.} h5 $2 {[%emt 0:05:11]} (17... Bg4 $16 18. f3 (18. Qxg4 $2 Qxa1+) 18... Bd7) 18. Rb1 $1 $18 {[%emt 0:05:46]} Qa2 {[%emt 0:01:10]} 19. Ra1 {[%emt 0:05:39]} (19. c3 $18) 19... Qb2 $16 {[%emt 0:00:02]} 20. h4 {[%emt 0:00:10][%mdl 1024] White has strong compensation.} Bg4 {[%emt 0:05:23]} (20... Rh6 $16 {keeps fighting.}) 21. f3 $36 {[%emt 0:02:18][%mdl 2048] White is on the roll.} Bd7 {[%emt 0:00:02] [#]} 22. Rb1 {[%emt 0:01:55]} ({White should try} 22. c3 $1 $16 {And now Qe1 would win.} Re8 23. Rxe8+ Bxe8 24. Qe1 (24. Rxa6 Qxc3 25. Kh1 Kg8 $11)) 22... Qa2 $2 {[%emt 0:00:09][%mdl 8192] [#]} (22... Qa3 $11) 23. Qe1 $1 {[%emt 0:00:37] Ra1 is the strong threat.} g6 {[%emt 0:07:02]} 24. Rd1 {[%emt 0:05:38] Strongly threatening Qc3.} (24. Ra1 Qb2 25. c3 Re8 26. Rxe8+ (26. Rxa6 Kg7 $11) 26... Bxe8 27. Rxa6 Bd7) 24... Qb2 {[%emt 0:01:12]} 25. Qa5 {[%emt 0:01:43]} Re8 {[%emt 0:04:46]} 26. Rxe8+ {[%emt 0:05:13]} Bxe8 {[%emt 0:00:02]} 27. c3 {[%emt 0:01:05][%cal Bc2c3,Bc3c4][%mdl 32]} ({Less strong is} 27. Qxa6 Qc3 28. Qa1 (28. Nxb5 Bxb5 29. Qxb5 Qxc2 $11) 28... Qxa1 29. Rxa1 Ke7 $18) 27... b4 {[%emt 0:08:01]} 28. Qxb4 {[%emt 0:00:14]} ({Inferior is} 28. Qxa6 Qxc3 29. Qa1 Bd7 $11) 28... Qa2 {[%emt 0:00:05]} 29. c4 {[%emt 0:04:59] Weighted Error Value: White=0.26 (precise) /Black=0.48.  Loses game:     	---       	Black=2      Mistake:       	White=2     	Black=1      Inaccurate:     	White=1     	Black=2      OK:         	White=8     	Black=4      Best:        	White=3     	Black=3      Strong:       	White=2     	Black=1} 1-0

[Event "German Bundesliga 2024-25"]
[Site "Germany"]
[Date "2024.11.30"]
[Round "3.3"]
[White "Predojevic, Borki"]
[Black "Popovic, Dusan"]
[Result "1/2-1/2"]
[Annotator "TA"]
[ECO "E94"]
[WhiteElo "2565"]
[BlackElo "2487"]
[PlyCount "56"]
[EventDate "2024.09.27"]
[EventType "team-tourn"]
[EventCountry "GER"]
[SourceTitle "playchess.com"]
[Source "ChessBase"]
[SourceQuality "1"]
[WhiteTeam "Kirchweyhe"]
[BlackTeam "Deggendorf"]
[TimeControl "40/5400+30:1800+30"]

{[%evp 19,56,42,108,107,102,91,85,74,75,51,52,49,54,53,55,60,59,33,37,36,37,37,47,41,45,44,41,45,50,40,56,51,50,39,39,49,44,43,43]} 1. d4 {[%emt 0:00:06]} Nf6 {[%emt 0:00:24]} 2. c4 {[%emt 0:00:26]} g6 {[%emt 0:00:18]} 3. Nc3 {[%emt 0:00:57]} Bg7 {[%emt 0:00:58]} 4. e4 {[%emt 0:00:46]} d6 {[%emt 0:00:09]} 5. Be2 {[%emt 0:00:24]} O-O {[%emt 0:00:56]} 6. Nf3 {[%emt 0:00:57]} e5 {[%emt 0:00:16]} 7. O-O {[%emt 0:02:57]} exd4 {[%emt 0:04:09]} 8. Nxd4 {[%emt 0:00:35]} Re8 {[%emt 0:01:50]} 9. f3 {[%emt 0:03:20]} c6 {[%emt 0:02:05][%cal Bc7c6,Bc6d5][%mdl 32]} 10. Kh1 {[%emt 0:05:59]} d5 {[%emt 0:04:24]} (10... Nfd7 $14) 11. cxd5 $16 {[%emt 0:04:41]} cxd5 {[%emt 0:00:16] [#]} 12. Bg5 $1 {[%emt 0:01:10]} Nc6 {[%emt 0:04:50] [#]} 13. Bb5 $1 {[%emt 0:05:56] White is more active. White is better.} h6 {[%emt 0:06:56]} 14. Bxf6 {[%emt 0:04:27]} (14. Nxc6 {is interesting.} bxc6 15. Bxc6 hxg5 16. Bxa8 d4 17. Ne2) 14... Qxf6 {[%emt 0:01:26] White is slightly better.} 15. exd5 {[%emt 0:00:42][%cal Be4d5,Bd5c6][%mdl 32]} Qxd4 {[%emt 0:03:00]} 16. dxc6 {[%emt 0:00:56]} Rf8 {[%emt 0:04:07]} 17. Qxd4 {[%emt 0:04:48]} Bxd4 {[%emt 0:00:23] Black is weak on the light squares} 18. Rfd1 {[%emt 0:00:31]} Be5 {[%emt 0:03:11]} 19. Rac1 {[%emt 0:04:52]} Rb8 {[%emt 0:03:53]} 20. b3 {[%emt 0:04:00]} bxc6 {[%emt 0:02:23]} 21. Bxc6 {[%emt 0:00:16]} Be6 {[%emt 0:01:00]} 22. Bd5 {[%emt 0:06:24]} Rfd8 {[%emt 0:08:49] ...Bxc3 is the strong threat.} 23. Bxe6 {[%emt 0:03:11] And now Bd7 would win.} Bxc3 {[%emt 0:01:45]} 24. Bc4 {[%emt 0:05:00]} ({But not} 24. Bxf7+ $2 Kxf7 25. Kg1 (25. Rxd8 $2 Rxd8 26. h4 Rd3 $19) 25... Rxd1+ 26. Rxd1 Ba5 $19) 24... Rxd1+ {[%emt 0:00:38]} 25. Rxd1 {[%emt 0:00:39]} Re8 {[%emt 0:01:47]} 26. g3 {[%emt 0:01:38] Threatens to win with Rd7.} Re1+ {[%emt 0:00:10]} 27. Rxe1 {[%emt 0:00:05]} Bxe1 {[%emt 0:00:04]} 28. Kg2 {[%emt 0:00:10]} Bb4 {[%emt 0:00:41] Weighted Error Value: White=0.05 (flawless) /Black=0.06 (flawless) .  Inaccurate:     	White=1     	---        OK:         	White=3     	Black=10     Best:        	White=4     	Black=1      Strong:       	White=2     	---} 1/2-1/2

[Event "German Bundesliga 2024-25"]
[Site "Germany"]
[Date "2024.11.30"]
[Round "3.3"]
[White "Vogel, Roven"]
[Black "Dardha, Daniel"]
[Result "0-1"]
[Annotator "RC"]
[ECO "A19"]
[WhiteElo "2558"]
[BlackElo "2606"]
[PlyCount "101"]
[EventDate "2024.09.27"]
[EventType "team-tourn"]
[EventCountry "GER"]
[SourceTitle "playchess.com"]
[Source "ChessBase"]
[SourceQuality "1"]
[WhiteTeam "TU Dresden"]
[BlackTeam "Deizisau"]
[TimeControl "40/5400+30:1800+30"]

1. c4 {[%emt 0:00:06]} Nf6 {[%emt 0:00:52]} 2. Nc3 {[%emt 0:00:23]} e6 {[%emt 0:02:13]} 3. e4 {[%emt 0:00:14]} c5 {[%emt 0:00:20]} 4. e5 {[%emt 0:10:10]} Ng8 {[%emt 0:00:16]} 5. Nf3 {[%emt 0:00:09]} Nc6 {[%emt 0:01:09]} 6. d4 {[%emt 0:00:28]} cxd4 {[%emt 0:00:22]} 7. Nxd4 {[%emt 0:00:08]} Nxe5 {[%emt 0:00:36]} 8. Ndb5 {[%emt 0:00:56]} f6 {[%emt 0:04:44]} 9. Be3 {[%emt 0:02:39]} a6 {[%emt 0:03:09]} 10. Nd6+ {[%emt 0:00:16]} Bxd6 {[%emt 0:00:07]} 11. Qxd6 {[%emt 0:00:06]} Ne7 {[%emt 0:00:13]} 12. Bb6 {[%emt 0:05:05]} Nf5 {[%emt 0:00:37]} 13. Qb4 {[%emt 0:10:52]} Nc6 {[%emt 0:00:50]} 14. Qc5 {[%emt 0:01:07]} d6 {[%emt 0:04:27]} 15. Bxd8 {[%emt 0:00:07]} dxc5 {[%emt 0:00:05]} 16. Bb6 {[%emt 0:00:13]} Ne5 {[%emt 0:11:16]} 17. Bxc5 {[%emt 0:03:27]} Bd7 {[%emt 0:01:01]} 18. b3 {[%emt 0:17:18]} Bc6 {[%emt 0:03:29]} 19. O-O-O {[%emt 0:06:56]} Rc8 {[%emt 0:01:02]} 20. Bb6 {[%emt 0:02:20]} h5 {[%emt 0:09:24]} 21. Rg1 {[%emt 0:12:20]} g5 {[%emt 0:03:31]} 22. f3 {[%emt 0:06:12]} Kf7 {[%emt 0:02:21]} 23. Be2 {[%emt 0:01:55]} h4 {[%emt 0:02:03]} 24. Ne4 {[%emt 0:02:49]} Rcg8 {[%emt 0:07:54]} 25. h3 {[%emt 0:12:01]} Bxe4 {[%emt 0:23:53]} 26. fxe4 {[%emt 0:00:05]} Ng3 {[%emt 0:00:25]} 27. Rge1 {[%emt 0:00:07]} Nxe2+ {[%emt 0:03:24]} 28. Rxe2 {[%emt 0:00:02]} g4 {[%emt 0:04:09]} 29. Bc7 {[%emt 0:01:30]} Nc6 {[%emt 0:03:47]} 30. Rd7+ {[%emt 0:01:01]} Kg6 {[%emt 0:00:15]} 31. hxg4 {[%emt 0:01:54]} Rh7 {[%emt 0:00:20]} 32. Red2 {[%emt 0:00:20]} Rgg7 {[%emt 0:01:24]} 33. Rxg7+ {[%emt 0:00:08]} Rxg7 {[%emt 0:00:05]} 34. Bf4 {[%emt 0:01:26]} Kh7 {[%emt 0:00:55]} 35. g5 {[%emt 0:02:12]} fxg5 {[%emt 0:00:05]} 36. Be3 {[%emt 0:00:34]} g4 {[%emt 0:00:26]} 37. Kd1 {[%emt 0:00:14]} Kg6 {[%emt 0:01:57]} 38. Ke2 {[%emt 0:00:15]} Kf6 {[%emt 0:01:08]} 39. Bf4 {[%emt 0:00:39]} Rf7 {[%emt 0:04:39]} 40. Rd1 {[%emt 0:00:34]} e5 {[%emt 0:01:00]} 41. Be3 {[%emt 0:02:54]} Ke6 42. Bc5 Rd7 43. Rh1 Rf7 44. Ke3 Kf6 45. Kf2 Nd4 46. Ra1 Rd7 47. Rf1 Kg6 48. Rh1 Kg5 49. Bb6 g3+ 50. Ke3 Kg4 51. Rd1 0-1

[Event "German Bundesliga 2024-25"]
[Site "Germany"]
[Date "2024.11.30"]
[Round "3.4"]
[White "Giri, Anish"]
[Black "Kempinski, Robert"]
[Result "1/2-1/2"]
[Annotator "TA"]
[ECO "D11"]
[WhiteElo "2733"]
[BlackElo "2560"]
[PlyCount "79"]
[EventDate "2024.09.27"]
[EventType "team-tourn"]
[EventCountry "GER"]
[SourceTitle "playchess.com"]
[Source "ChessBase"]
[SourceQuality "1"]
[WhiteTeam "Duesseldorf"]
[BlackTeam "Hamburg"]
[TimeControl "40/5400+30:1800+30"]

{[%evp 15,79,20,27,19,23,20,33,22,24,20,35,44,54,42,64,50,77,68,56,55,71,72,88,75,107,106,109,50,68,34,97,29,29,9,15,0,0,0,42,57,97,65,66,25,18,11,5,33,27,12,98,88,85,56,59,54,28,32,81,93,79,16,48,-73,-88,-77]} 1. c4 {[%emt 0:00:02]} c6 {[%emt 0:02:42]} 2. Nf3 {[%emt 0:00:35]} d5 {[%emt 0:00:16]} 3. d4 {[%emt 0:00:05]} Nf6 {[%emt 0:00:36]} 4. e3 {[%emt 0:00:04]} Bg4 {[%emt 0:02:42]} 5. h3 {[%emt 0:01:21]} Bxf3 {[%emt 0:00:24]} 6. Qxf3 {[%emt 0:00:05]} e6 {[%emt 0:00:34]} 7. Bd3 {[%emt 0:05:06]} Bb4+ {[%emt 0:01:08]} 8. Nc3 {[%emt 0:04:23]} Nbd7 {[%emt 0:01:44]} 9. O-O {[%emt 0:12:09]} O-O {[%emt 0:02:59]} 10. a3 {[%emt 0:00:40]} Ba5 {[%emt 0:02:26]} 11. b4 {[%emt 0:13:02][%cal Bb2b4,Bb4b5][%mdl 32] White is slightly better.} Bc7 {[%emt 0:04:22]} 12. cxd5 {[%emt 0:00:54]} exd5 {[%emt 0:02:37]} 13. b5 {[%emt 0:01:45]} Re8 {[%emt 0:04:34]} 14. a4 {[%emt 0:02:13]} Ba5 {[%emt 0:09:35]} 15. Bb2 {[%emt 0:00:51]} Nb6 {[%emt 0:03:06]} 16. Rfc1 {[%emt 0:01:18] White is more active.} Rc8 {[%emt 0:00:58]} 17. bxc6 {[%emt 0:03:43]} bxc6 {[%emt 0:01:27]} 18. Rc2 {[%emt 0:02:51]} g6 {[%emt 0:05:41]} 19. Qd1 {[%emt 0:03:26]} Qd7 {[%emt 0:06:36]} 20. Ne2 {[%emt 0:09:57]} Ne4 {[%emt 0:06:44]} 21. Nc1 {[%emt 0:00:27]} (21. Nf4 $16) 21... Qe7 {[%emt 0:05:46][%cal Ob6c4]} 22. Ba6 {[%emt 0:07:23]} Rc7 {[%emt 0:15:22]} (22... Rb8 $1 $14) 23. Qe2 {[%emt 0:07:36]} (23. Nd3 $16) 23... Bb4 $11 {[%emt 0:04:24] Prevents Ba3} 24. Nd3 {[%emt 0:02:03]} Bd6 {[%emt 0:00:07]} 25. Ne5 {[%emt 0:03:03]} Bxe5 {[%emt 0:04:13]} 26. dxe5 {[%emt 0:00:01]} Nd7 {[%emt 0:00:13]} 27. f4 $36 {[%emt 0:00:42][%mdl 2048] White has the initiative.} Rb8 {[%emt 0:06:41]} 28. Ba3 {[%emt 0:01:13]} Qe6 {[%emt 0:01:15]} 29. Rb2 {[%emt 0:00:39]} Rxb2 {[%emt 0:00:31]} 30. Qxb2 {[%emt 0:00:30]} c5 {[%emt 0:00:54][%cal Bc6c5,Bc5c4,Bc4b3][%mdl 32]} 31. Bd3 {[%emt 0:01:54]} c4 {[%emt 0:01:24]} 32. Bxe4 {[%emt 0:00:04]} (32. Bc2 {with more complications.} c3 33. Qb5 Qb6 34. Re1) 32... dxe4 {[%emt 0:00:05] Black is weak on the dark squares} (32... c3 $1 $11 {remains equal.} 33. Qc2 dxe4) 33. Rd1 {[%emt 0:00:16]} Qb6 {[%emt 0:00:49]} ({Weaker is} 33... c3 34. Qb8+ Kg7 35. Rxd7 (35. Qxc7 c2 $18) (35. Qxc7 c2 $18)) 34. Qc3 {[%emt 0:06:11]} Qb3 {[%emt 0:00:19]} 35. Qxb3 {[%emt 0:01:25]} cxb3 {[%emt 0:00:03]} 36. a5 {[%emt 0:00:59]} a6 {[%emt 0:01:55]} (36... h6 $14) 37. Kh2 $16 {[%emt 0:03:05]} Rb7 {[%emt 0:01:11][%cal Og6g5]} 38. Rd2 {[%emt 0:03:17]} ({White should try} 38. Kg3 $16) 38... h6 {[%emt 0:00:07]} 39. Bb2 {[%emt 0:01:40] [#]} (39. Rd6 $1 $14 {stays ahead.}) 39... Kf8 $1 $17 {[%emt 0:00:22] ...Nc5 would now be deadly.} 40. Rd1 {[%emt 0:02:48] Weighted Error Value: White=0.21 (precise) /Black=0.16 (very precise) .  Mistake:       	White=4     	Black=3      Inaccurate:     	White=4     	Black=5      OK:         	White=11    	Black=7      Best:        	White=1     	Black=3      Strong:       	---       	Black=1} 1/2-1/2

[Event "German Bundesliga 2024-25"]
[Site "Germany"]
[Date "2024.11.30"]
[Round "3.4"]
[White "Gledura, Benjamin"]
[Black "Nisipeanu, Liviu-Dieter"]
[Result "1-0"]
[Annotator "RC"]
[ECO "A18"]
[WhiteElo "2652"]
[BlackElo "2596"]
[PlyCount "45"]
[EventDate "2024.09.27"]
[EventType "team-tourn"]
[EventCountry "GER"]
[SourceTitle "playchess.com"]
[Source "ChessBase"]
[SourceQuality "1"]
[WhiteTeam "Deizisau"]
[BlackTeam "TU Dresden"]
[TimeControl "40/5400+30:1800+30"]

1. c4 {[%emt 0:00:06]} Nf6 {[%emt 0:00:19]} 2. Nc3 {[%emt 0:00:19]} e6 {[%emt 0:00:29]} 3. e4 {[%emt 0:00:27]} d5 {[%emt 0:00:12]} 4. e5 {[%emt 0:00:34]} d4 {[%emt 0:00:07]} 5. exf6 {[%emt 0:00:16]} dxc3 {[%emt 0:00:07]} 6. bxc3 {[%emt 0:00:13]} Qxf6 {[%emt 0:00:07]} 7. Bd3 {[%emt 0:01:25]} Bd7 {[%emt 0:13:46]} 8. Nf3 {[%emt 0:00:50]} Bc6 {[%emt 0:00:45]} 9. Bc2 {[%emt 0:00:22]} Nd7 {[%emt 0:08:19]} 10. d4 {[%emt 0:01:36]} h6 {[%emt 0:04:18]} 11. Rb1 {[%emt 0:16:25]} O-O-O {[%emt 0:11:13]} 12. Qe2 {[%emt 0:04:45]} g5 {[%emt 0:23:08]} 13. O-O {[%emt 0:05:36]} g4 {[%emt 0:00:29]} 14. Nd2 {[%emt 0:03:44]} Rg8 {[%emt 0:00:10]} 15. Be4 {[%emt 0:09:40]} Bxe4 {[%emt 0:10:42]} 16. Qxe4 {[%emt 0:05:27]} c6 {[%emt 0:01:29]} 17. Qc2 {[%emt 0:01:16]} Qf5 {[%emt 0:05:10]} 18. Qb3 {[%emt 0:05:05]} b6 {[%emt 0:00:07]} 19. c5 {[%emt 0:04:57]} Bxc5 {[%emt 0:11:24]} 20. Nc4 {[%emt 0:14:53]} Be7 {[%emt 0:06:43]} 21. Qa4 {[%emt 0:03:18]} Qd5 {[%emt 0:00:52]} 22. Bf4 {[%emt 0:11:19]} e5 {[%emt 0:00:15]} 23. dxe5 {[%emt 0:02:10]} 1-0

[Event "German Bundesliga 2024-25"]
[Site "Germany"]
[Date "2024.11.30"]
[Round "3.4"]
[White "Ferreira, Jorge Viterbo"]
[Black "Cheng, Bobby"]
[Result "1/2-1/2"]
[Annotator "TA"]
[ECO "B51"]
[WhiteElo "2523"]
[BlackElo "2594"]
[PlyCount "42"]
[EventDate "2024.09.27"]
[EventType "team-tourn"]
[EventCountry "GER"]
[SourceTitle "playchess.com"]
[Source "ChessBase"]
[SourceQuality "1"]
[WhiteTeam "Heimbach-Weis-Neuwied"]
[BlackTeam "Werder Bremen"]
[TimeControl "40/5400+30:1800+30"]

{[%evp 9,42,15,5,17,12,12,21,16,14,16,21,24,16,18,32,25,27,26,27,18,30,29,35,20,28,13,54,27,32,43,35,0,20,0,40]} 1. e4 {[%emt 0:00:03]} c5 {[%emt 0:00:07]} 2. Nf3 {[%emt 0:00:07][%cal Bg1f3,Bf3d4,Bd4b3,Bb3d2,Bd2c4][%mdl 32]} d6 {[%emt 0:00:04]} 3. Bb5+ {[%emt 0:00:12]} Nd7 {[%emt 0:00:06][%cal Bb8d7,Bd7c5,Bc5d3][%mdl 32]} 4. d4 {[%emt 0:00:11]} cxd4 {[%emt 0:00:10]} 5. Nxd4 {[%emt 0:00:10]} Ngf6 {[%emt 0:01:40]} 6. Bd3 $1 {[%emt 0:00:21]} Nc5 {[%emt 0:02:59]} 7. Nc3 {[%emt 0:00:17]} e5 {[%emt 0:06:25]} 8. Nb3 {[%emt 0:00:26]} Nxd3+ {[%emt 0:00:20]} 9. Qxd3 {[%emt 0:00:11]} h6 {[%emt 0:00:20] Prevents Bg5} 10. Nd2 {[%emt 0:00:33]} Be7 {[%emt 0:03:07]} 11. Nc4 {[%emt 0:00:30]} Be6 {[%emt 0:06:21]} 12. O-O {[%emt 0:01:10]} Rc8 {[%emt 0:02:43]} 13. Ne3 {[%emt 0:00:47]} O-O {[%emt 0:05:20]} 14. Rd1 {[%emt 0:00:43]} Qd7 {[%emt 0:02:55]} 15. a4 {[%emt 0:02:29][%cal Ba2a4,Ba4a5][%mdl 32]} Rc6 {[%emt 0:18:59]} 16. Bd2 {[%emt 0:35:23]} a6 {[%emt 0:18:04]} 17. Be1 {[%emt 0:03:07]} Qc8 {[%emt 0:05:21]} 18. a5 {[%emt 0:21:53]} Bc4 {[%emt 0:03:34]} 19. Qd2 {[%emt 0:14:21]} Be6 {[%emt 0:01:52]} 20. Qd3 {[%emt 0:00:06]} Bc4 $1 {[%emt 0:00:19]} 21. Qd2 {[%emt 0:00:06]} Be6 {[%emt 0:00:02] Weighted Error Value: White=0.08 (flawless) /Black=0.05 (flawless) .  Inaccurate:     	White=1     	Black=1      OK:         	White=6     	Black=6      Best:        	---       	Black=1      Strong:       	---       	Black=1} 1/2-1/2

[Event "German Bundesliga 2024-25"]
[Site "Germany"]
[Date "2024.11.30"]
[Round "3.4"]
[White "Sedlak, Nikola"]
[Black "Kadric, Denis"]
[Result "1/2-1/2"]
[Annotator "ChessBase"]
[ECO "A46"]
[WhiteElo "2444"]
[BlackElo "2562"]
[PlyCount "80"]
[EventDate "2024.09.27"]
[EventType "team-tourn"]
[EventCountry "GER"]
[SourceTitle "playchess.com"]
[Source "ChessBase"]
[SourceQuality "1"]
[WhiteTeam "Deggendorf"]
[BlackTeam "Kirchweyhe"]
[TimeControl "40/5400+30:1800+30"]

1. d4 {[%emt 0:00:07]} Nf6 {[%emt 0:00:07]} 2. Nf3 {[%emt 0:00:28]} d6 {[%emt 0:00:06]} 3. Bf4 {[%emt 0:01:39]} Nbd7 {[%emt 0:00:18]} 4. e3 {[%emt 0:00:31]} Nh5 {[%emt 0:00:06]} 5. Bg5 {[%emt 0:07:57]} h6 {[%emt 0:00:23]} 6. Bh4 {[%emt 0:00:07]} g5 {[%emt 0:00:05]} 7. Nfd2 {[%emt 0:01:02]} Ndf6 {[%emt 0:00:07]} 8. Bg3 {[%emt 0:00:06]} Bg7 {[%emt 0:01:23]} 9. Be2 {[%emt 0:01:16]} Nxg3 {[%emt 0:00:06]} 10. hxg3 {[%emt 0:00:06]} O-O {[%emt 0:00:58]} 11. Bd3 {[%emt 0:11:46]} e5 {[%emt 0:10:21]} 12. dxe5 {[%emt 0:04:36]} Ng4 {[%emt 0:01:49]} 13. Nf3 {[%emt 0:00:59]} dxe5 {[%emt 0:04:30]} 14. Nc3 {[%emt 0:04:36]} c6 {[%emt 0:01:08]} 15. Ne4 {[%emt 0:10:45]} Qe7 {[%emt 0:05:31]} 16. Nh2 {[%emt 0:15:33]} Nxh2 {[%emt 0:04:50]} 17. Rxh2 {[%emt 0:00:24]} Rd8 {[%emt 0:05:03]} 18. g4 {[%emt 0:13:51]} Qb4+ {[%emt 0:08:22]} 19. Kf1 {[%emt 0:00:06]} Qxb2 {[%emt 0:03:03]} 20. f3 {[%emt 0:02:50]} Be6 {[%emt 0:01:31]} 21. a3 {[%emt 0:05:25]} Bc4 {[%emt 0:09:16]} 22. Kg1 {[%emt 0:01:39]} Bxd3 {[%emt 0:01:11]} 23. cxd3 {[%emt 0:00:06]} Rxd3 {[%emt 0:00:53]} 24. Qxd3 {[%emt 0:00:04]} Qxa1+ {[%emt 0:00:01]} 25. Kf2 {[%emt 0:00:05]} Qa2+ {[%emt 0:00:01]} 26. Kg3 {[%emt 0:00:06]} Qd5 {[%emt 0:00:02]} 27. Qb1 {[%emt 0:00:17]} Qb5 {[%emt 0:03:02]} 28. Qd1 {[%emt 0:09:49]} Qb6 {[%emt 0:00:20]} 29. Qd7 {[%emt 0:01:15]} Qxe3 {[%emt 0:07:43]} 30. Rh1 {[%emt 0:00:47]} Rf8 {[%emt 0:17:26]} 31. Qxb7 {[%emt 0:01:13]} f5 {[%emt 0:03:38]} 32. gxf5 {[%emt 0:00:15]} Qf4+ {[%emt 0:03:16]} 33. Kf2 {[%emt 0:00:19]} Qxf5 {[%emt 0:02:15]} 34. Qxc6 {[%emt 0:00:21]} g4 {[%emt 0:00:55]} 35. Qc4+ {[%emt 0:01:26]} Kh8 {[%emt 0:00:11]} 36. Qe2 {[%emt 0:05:13]} gxf3 {[%emt 0:00:32]} 37. gxf3 {[%emt 0:00:04]} Rb8 {[%emt 0:00:17]} 38. Qc2 {[%emt 0:00:37]} Bf8 {[%emt 0:02:46]} 39. a4 {[%emt 0:00:49]} Rc8 {[%emt 0:01:58]} 40. Qd2 {[%emt 0:00:29]} Rc7 {[%emt 0:01:00]} 1/2-1/2